bitfinex/quotes_BTCUSD_20251124
["timestamp","ask_amount","ask_price","bid_price","bid_amount"]
[1764025434639,2.29541372,88741.0,88740.0,0.00561814]
[1764025435458,2.00751577,88741.0,88740.0,0.00561814]
[1764025435663,2.23289073,88741.0,88740.0,0.00561814]
[1764025435912,2.55589073,88741.0,88740.0,0.00561814]
[1764025437345,2.63927456,88741.0,88740.0,0.00561814]
[1764025438368,2.63215456,88741.0,88740.0,0.00561814]
[1764025438572,2.56963157,88741.0,88740.0,0.00561814]
[1764025438834,0.57675157,88741.0,88740.0,0.00561814]
[1764025439248,0.34425661,88741.0,88740.0,0.00561814]
[1764025439585,0.35137661,88741.0,88740.0,0.00561814]
[1764025440265,0.57675157,88741.0,88740.0,0.00561814]
[1764025440475,0.35137661,88741.0,88740.0,0.00561814]
[1764025441219,0.35137661,88741.0,88740.0,0.00754814]
[1764025441426,0.34425661,88741.0,88740.0,0.00754814]
[1764025441632,0.35137661,88741.0,88740.0,0.00754814]
[1764025441854,0.02125661,88741.0,88740.0,0.04706814]
[1764025442019,0.00039577,88741.0,88740.0,0.02360814]
[1764025442627,2.50039577,88741.0,88740.0,0.00754814]
[1764025442826,2.02131136,88741.0,88740.0,0.00754814]
[1764025443579,2.02131136,88741.0,88740.0,0.00854814]
[1764025443926,2.34431136,88741.0,88740.0,0.00854814]
[1764025444381,2.34431136,88741.0,88740.0,0.00954814]
[1764025444784,2.34431136,88741.0,88740.0,0.00854814]
[1764025444991,2.34431136,88741.0,88740.0,0.00754814]
[1764025445547,2.34431136,88741.0,88740.0,0.00854814]
[1764025445548,2.40683435,88741.0,88740.0,0.00854814]
[1764025446559,2.41395435,88741.0,88740.0,0.00854814]
[1764025448894,0.34431136,88741.0,88740.0,0.00854814]
[1764025449095,0.34431136,88741.0,88740.0,0.02460814]
[1764025449336,0.34431136,88741.0,88740.0,0.04806814]
[1764025450182,0.34431136,88741.0,88740.0,0.02460814]
[1764025450389,0.02131136,88741.0,88740.0,0.04806814]
[1764025450786,0.02131136,88741.0,88740.0,0.04906814]
[1764025451189,0.02131136,88741.0,88740.0,0.00954814]
[1764025451783,0.02131136,88741.0,88740.0,0.01054814]
[1764025453138,0.02131136,88741.0,88740.0,0.02660814]
[1764025453305,0.02131136,88741.0,88740.0,0.05006814]
[1764025453906,0.00039577,88741.0,88740.0,0.27544564]
[1764025454627,0.00039577,88741.0,88740.0,0.27444564]
[1764025454790,0.00039577,88741.0,88740.0,0.27544564]
[1764025455135,0.00039577,88741.0,88740.0,0.27444564]
[1764025455375,0.34138684,88756.0,88740.0,0.27444564]
[1764025455376,0.01126773,88749.0,88741.0,0.02429]
[1764025455579,0.01126773,88749.0,88741.0,0.02440852]
[1764025455784,0.01126798,88747.0,88741.0,0.02440852]
[1764025455992,0.01126785,88748.0,88741.0,0.02440852]
[1764025456160,0.01126798,88747.0,88741.0,0.02440852]
[1764025456371,0.86433872,88750.0,88747.0,0.0157]
[1764025456587,0.86433872,88751.0,88749.0,0.0157]
[1764025456785,0.0209562,88750.0,88749.0,0.0157]
[1764025456962,0.01126735,88752.0,88751.0,0.02808]
[1764025457350,0.23661102,88754.0,88751.0,0.02808]
[1764025457351,0.02095631,88753.0,88751.0,0.02808]
[1764025457557,0.323,88754.0,88753.0,0.0157]
[1764025457763,0.56929499,88754.0,88753.0,0.0157]
[1764025458180,0.34395304,88754.0,88753.0,0.0157]
[1764025458465,0.323,88754.0,88753.0,0.0157]
[1764025459601,0.323,88754.0,88753.0,0.03999]
[1764025459805,0.323,88754.0,88753.0,0.04099]
[1764025460206,0.323,88754.0,88753.0,0.0167]
[1764025462059,0.01126646,88759.0,88753.0,0.04099]
[1764025462286,0.01126659,88758.0,88753.0,0.02529]
[1764025462488,0.01126659,88758.0,88754.0,0.02429]
[1764025462664,0.01126659,88758.0,88757.0,0.0157]
[1764025462882,0.01126646,88759.0,88757.0,0.0157]
[1764025463201,2.323,88769.0,88760.0,0.01126633]
[1764025463351,0.323,88767.0,88763.0,0.01238]
[1764025463759,0.323,88767.0,88766.0,0.0157]
[1764025464174,0.323,88767.0,88766.0,0.03999]
[1764025464388,0.54831656,88764.0,88763.0,0.01238]
[1764025465086,0.23659239,88761.0,88758.0,0.01238]
[1764025465514,0.54832355,88762.0,88760.0,0.0157]
[1764025465670,0.323,88762.0,88758.0,0.03667]
[1764025465868,0.323,88762.0,88761.0,0.0157]
[1764025466306,0.323,88762.0,88761.0,0.03999]
[1764025466680,0.323,88764.0,88761.0,0.03999]
[1764025466899,0.323,88764.0,88763.0,0.0157]
[1764025467331,0.323,88764.0,88763.0,0.03999]
[1764025467750,0.33426532,88768.0,88763.0,0.03999]
[1764025467912,0.33426532,88768.0,88766.0,0.0157]
[1764025468246,0.33426532,88768.0,88767.0,0.0157]
[1764025468409,0.323,88768.0,88767.0,0.0157]
[1764025468610,0.60451996,88780.0,88774.0,0.22529118]
[1764025468832,0.22525395,88789.0,88779.0,0.0157]
[1764025468833,0.00712,88788.0,88779.0,0.0157]
[1764025469008,0.10701753,88786.0,88783.0,0.01238]
[1764025469392,0.323,88785.0,88784.0,0.02429]
[1764025469506,0.323,88785.0,88784.0,0.03999]
[1764025469706,0.60451996,88794.0,88784.0,0.03999]
[1764025469920,0.60451996,88794.0,88783.0,0.01238]
[1764025469921,0.60451996,88794.0,88793.0,0.02808]
[1764025470148,0.01961969,88795.0,88793.0,0.02808]
[1764025470373,0.01961969,88795.0,88794.0,0.0157]
[1764025470588,0.34261969,88795.0,88794.0,0.0157]
[1764025471205,0.0012378,88795.0,88794.0,0.0157]
[1764025471415,0.0012378,88795.0,88794.0,0.03999]
[1764025471559,0.3242378,88795.0,88793.0,0.01238]
[1764025471934,0.3242378,88795.0,88783.0,0.01238]
[1764025471935,0.01126252,88790.0,88783.0,0.01238]
[1764025472085,0.01126367,88781.0,88770.0,0.01238]
[1764025472287,0.01126354,88782.0,88770.0,0.03076506]
[1764025472495,0.01126354,88782.0,88773.0,0.02429]
[1764025473107,0.01126367,88781.0,88773.0,0.02429]
[1764025473297,0.01126405,88778.0,88775.0,0.01338]
[1764025473458,0.01126405,88778.0,88775.0,0.01238]
[1764025473655,0.01126405,88778.0,88777.0,0.0157]
[1764025473916,0.23654508,88778.0,88775.0,0.01438]
[1764025474436,0.23654508,88778.0,88775.0,0.01338]
[1764025474730,0.22528611,88776.0,88775.0,0.01438]
[1764025475139,0.22528611,88776.0,88775.0,0.01338]
[1764025475536,0.22528611,88776.0,88775.0,0.01438]
[1764025475688,0.23654508,88778.0,88775.0,0.01238]
[1764025475882,0.23653294,88783.0,88775.0,0.01238]
[1764025475883,0.00712,88786.0,88777.0,0.0157]
[1764025476092,0.00712,88786.0,88783.0,0.0157]
[1764025476530,0.323,88787.0,88785.0,0.0157]
[1764025476732,0.323,88787.0,88786.0,0.0157]
[1764025477094,0.323,88787.0,88786.0,0.03999]
[1764025477317,0.323,88792.0,88786.0,0.03999]
[1764025477522,0.323,88792.0,88787.0,0.02429]
[1764025477717,0.0112624,88791.0,88787.0,0.02429]
[1764025477936,0.323,88792.0,88791.0,0.0157]
[1764025478340,0.323,88792.0,88791.0,0.03999]
[1764025478654,0.323,88793.0,88791.0,0.03999]
[1764025478799,0.323,88793.0,88792.0,0.03999]
[1764025480243,0.01126303,88786.0,88782.0,0.01238]
[1764025480441,0.01126316,88785.0,88782.0,0.01238]
[1764025480752,0.23652848,88785.0,88782.0,0.01238]
[1764025480954,0.22526754,88784.0,88782.0,0.01238]
[1764025481355,0.22526754,88784.0,88783.0,0.0157]
[1764025481557,0.01126405,88778.0,88775.0,0.01238]
[1764025481958,0.22528357,88777.0,88775.0,0.01238]
[1764025482892,0.22528357,88777.0,88776.0,0.0157]
[1764025483280,0.22528357,88777.0,88775.0,0.01238]
[1764025483646,0.22528357,88777.0,88775.0,0.01338]
[1764025483847,0.22528357,88777.0,88776.0,0.01562]
[1764025484048,0.22528357,88777.0,88775.0,0.01438]
[1764025484919,0.22528357,88777.0,88775.0,0.01338]
[1764025485298,0.22528357,88777.0,88775.0,0.01238]
[1764025485635,0.22527856,88779.0,88771.0,0.02429]
[1764025485636,0.23655922,88773.0,88771.0,0.01207]
[1764025485940,0.23655922,88773.0,88762.0,0.00024459]
[1764025485941,0.2253191,88763.0,88762.0,0.00024459]
[1764025486136,0.2253191,88763.0,88762.0,0.00036311]
[1764025487313,0.2253191,88763.0,88762.0,0.00136311]
[1764025488441,0.2253191,88763.0,88762.0,0.00236311]
[1764025492565,0.5483191,88763.0,88762.0,0.00236311]
[1764025492768,0.56926014,88763.0,88762.0,0.00236311]
[1764025492969,0.56906516,88763.0,88762.0,0.00236311]
[1764025493372,0.56906516,88763.0,88762.0,0.00136311]
[1764025494300,0.56906516,88763.0,88762.0,0.00036311]
[1764025495111,0.34394104,88763.0,88762.0,0.00036311]
[1764025495321,0.33012,88763.0,88762.0,0.00036311]
[1764025495960,0.323,88763.0,88762.0,0.00036311]
[1764025496257,0.33012,88763.0,88762.0,0.01680311]
[1764025496800,0.33012,88763.0,88762.0,0.00036311]
[1764025498508,0.323,88763.0,88762.0,0.04074311]
[1764025498915,0.5483191,88763.0,88762.0,0.00036311]
[1764025499824,0.5533191,88763.0,88762.0,0.00036311]
[1764025500027,2.5533191,88763.0,88762.0,0.00036311]
[1764025500191,2.57424476,88763.0,88762.0,0.00036311]
[1764025500390,2.63676775,88763.0,88762.0,0.00036311]
[1764025501024,2.68676775,88763.0,88762.0,0.00036311]
[1764025501199,2.68776775,88763.0,88762.0,0.00036311]
[1764025502213,2.63776775,88763.0,88762.0,0.00036311]
[1764025503261,2.65094844,88763.0,88762.0,0.00036311]
[1764025503696,2.70094844,88763.0,88762.0,0.00036311]
[1764025504103,2.65094844,88763.0,88762.0,0.00036311]
[1764025504659,2.70094844,88763.0,88762.0,0.00036311]
[1764025506496,2.65094844,88763.0,88762.0,0.00036311]
[1764025507127,2.65806844,88763.0,88762.0,0.00036311]
[1764025508185,2.65094844,88763.0,88762.0,0.00036311]
[1764025508373,2.26542545,88763.0,88762.0,0.00036311]
[1764025508563,0.006,88763.0,88762.0,0.01680311]
[1764025508765,0.006,88763.0,88762.0,0.04074311]
[1764025509389,0.006,88763.0,88762.0,0.01680311]
[1764025509563,0.006,88763.0,88762.0,0.04074311]
[1764025509909,0.005,88763.0,88762.0,0.04074311]
[1764025517195,0.005,88763.0,88762.0,0.04174311]
[1764025517551,0.01126532,88768.0,88767.0,0.01627]
[1764025517948,0.01126532,88768.0,88767.0,0.03943]
[1764025518695,0.22531656,88764.0,88762.0,0.00136311]
[1764025518908,0.0112657,88765.0,88763.0,0.03943]
[1764025519188,0.23657594,88767.0,88764.0,0.01627]
[1764025519390,0.01126506,88770.0,88767.0,0.01627]
[1764025519391,0.23656682,88770.0,88767.0,0.01627]
[1764025519593,0.23656682,88770.0,88764.0,0.02316]
[1764025519594,0.01126544,88767.0,88764.0,0.02316]
[1764025519771,0.2365745,88767.0,88764.0,0.02316]
[1764025519975,0.2365745,88767.0,88766.0,0.0278]
[1764025521833,0.2365745,88767.0,88766.0,0.0288]
[1764025522497,0.2365745,88767.0,88766.0,0.01253]
[1764025522653,0.2365745,88767.0,88766.0,0.001]
[1764025523496,0.2253191,88763.0,88762.0,0.00036311]
[1764025524060,2.2253191,88763.0,88762.0,0.00036311]
[1764025524684,0.5483191,88763.0,88762.0,0.00036311]
[1764025527783,0.323,88763.0,88762.0,0.00036311]
[1764025527988,0.323,88763.0,88762.0,0.03979311]
[1764025537606,0.5483191,88763.0,88762.0,0.03979311]
[1764025537759,0.5483191,88763.0,88762.0,0.00036311]
[1764025538823,0.56930352,88763.0,88762.0,0.00136311]
[1764025539471,2.56930352,88763.0,88762.0,0.00036311]
[1764025539844,2.34398442,88763.0,88762.0,0.01663311]
[1764025540189,0.56930352,88763.0,88762.0,0.01663311]
[1764025540479,0.56930352,88763.0,88762.0,0.00036311]
[1764025540831,2.56930062,88763.0,88762.0,0.00036311]
[1764025544004,2.24630062,88763.0,88762.0,0.00036311]
[1764025546198,2.61930062,88763.0,88762.0,0.00036311]
[1764025546399,2.59290062,88763.0,88762.0,0.00036311]
[1764025546599,2.70542361,88763.0,88762.0,0.00036311]
[1764025547458,2.7054084,88763.0,88762.0,0.00036311]
[1764025547660,2.6554084,88763.0,88762.0,0.00036311]
[1764025549179,2.6564084,88763.0,88762.0,0.00036311]
[1764025549678,2.67408468,88763.0,88762.0,0.00036311]
[1764025551231,2.44876558,88763.0,88762.0,0.00036311]
[1764025551438,2.67408468,88763.0,88762.0,0.00036311]
[1764025553402,2.61156169,88763.0,88762.0,0.00036311]
[1764025553723,2.61868169,88763.0,88762.0,0.00036311]
[1764025556748,2.61156169,88763.0,88762.0,0.00036311]
[1764025556894,2.61868169,88763.0,88762.0,0.00036311]
[1764025557299,2.61768169,88763.0,88762.0,0.00036311]
[1764025559010,0.38524259,88763.0,88762.0,0.01649311]
[1764025559350,0.01126557,88766.0,88762.0,0.04006311]
[1764025559351,0.22531149,88766.0,88762.0,0.04006311]
[1764025559567,0.22531149,88766.0,88763.0,0.02357]
[1764025559568,0.23658122,88765.0,88763.0,0.02357]
[1764025559909,0.5483191,88763.0,88762.0,0.00036311]
[1764025560110,0.2253191,88763.0,88762.0,0.02393311]
[1764025560315,0.2253191,88763.0,88762.0,0.04006311]
[1764025560875,0.2253191,88763.0,88762.0,0.00036311]
[1764025561240,2.5483191,88763.0,88762.0,0.00036311]
[1764025561640,2.56926356,88763.0,88762.0,0.00036311]
[1764025562057,2.5483191,88763.0,88762.0,0.00036311]
[1764025564747,2.323,88763.0,88762.0,0.00036311]
[1764025564953,2.5483191,88763.0,88762.0,0.00036311]
[1764025566378,2.5692727,88763.0,88762.0,0.00036311]
[1764025569207,2.61802198,88763.0,88762.0,0.00036311]
[1764025569671,2.78037554,88763.0,88762.0,0.00036311]
[1764025569874,2.71515423,88763.0,88762.0,0.00036311]
[1764025570151,2.75101637,88763.0,88762.0,0.00036311]
[1764025571024,2.75201637,88763.0,88762.0,0.00036311]
[1764025571644,2.75101637,88763.0,88762.0,0.00036311]
[1764025572188,2.75201637,88763.0,88762.0,0.00036311]
[1764025572544,2.86723768,88763.0,88762.0,0.00036311]
[1764025572746,0.54837496,88741.0,88729.0,0.0118]
[1764025572953,0.55549496,88741.0,88729.0,0.0118]
[1764025573150,0.55549496,88741.0,88740.0,0.01385352]
[1764025573709,0.31423958,88741.0,88740.0,0.01385352]
[1764025574235,0.53961454,88741.0,88740.0,0.01385352]
[1764025574442,2.56054493,88741.0,88740.0,0.01385352]
[1764025574981,2.61054493,88741.0,88740.0,0.01385352]
[1764025575336,2.56054493,88741.0,88740.0,0.01385352]
[1764025575739,2.57822414,88741.0,88740.0,0.01385352]
[1764025578085,2.55715876,88741.0,88740.0,0.01385352]
[1764025580099,2.57101228,88741.0,88740.0,0.01385352]
[1764025585133,2.57101228,88741.0,88740.0,0.02385352]
[1764025586246,2.62101228,88741.0,88740.0,0.02385352]
[1764025586397,2.57101228,88741.0,88740.0,0.02385352]
[1764025591734,2.33851732,88741.0,88740.0,0.02385352]
[1764025591957,0.34563732,88741.0,88740.0,0.02385352]
[1764025592556,0.33851732,88741.0,88740.0,0.02385352]
[1764025592896,0.34563732,88741.0,88740.0,0.02390246]
[1764025595983,2.34563732,88741.0,88740.0,0.02390246]
[1764025596621,2.33851732,88741.0,88740.0,0.02390246]
[1764025596821,2.34563732,88741.0,88740.0,0.02390246]
[1764025597574,2.36657378,88741.0,88740.0,0.02390246]
[1764025598551,2.36658405,88741.0,88740.0,0.02390246]
[1764025598901,2.41658405,88741.0,88740.0,0.02390246]
[1764025599303,2.34890484,88741.0,88740.0,0.02390246]
[1764025599603,2.39890484,88741.0,88740.0,0.02390246]
[1764025600008,2.34890484,88741.0,88740.0,0.02390246]
[1764025602551,2.36658466,88741.0,88740.0,0.02390246]
[1764025603006,2.41658466,88741.0,88740.0,0.02390246]
[1764025603866,2.42910765,88741.0,88740.0,0.02390246]
[1764025604184,2.47910765,88741.0,88740.0,0.02390246]
[1764025604887,2.46374275,88741.0,88740.0,0.02390246]
[1764025605086,2.51374275,88741.0,88740.0,0.02390246]
[1764025606100,2.46374275,88741.0,88740.0,0.02390246]
[1764025606414,2.51374275,88741.0,88740.0,0.02390246]
[1764025606700,2.46374275,88741.0,88740.0,0.02390246]
[1764025606864,2.51374275,88741.0,88740.0,0.02390246]
[1764025607067,2.46374275,88741.0,88740.0,0.02390246]
[1764025607264,2.45326025,88741.0,88740.0,0.02390246]
[1764025607528,2.53670969,88741.0,88740.0,0.02390246]
[1764025607685,2.58670969,88741.0,88740.0,0.02390246]
[1764025608404,2.50326025,88741.0,88740.0,0.02390246]
[1764025608613,2.45326025,88741.0,88740.0,0.02390246]
[1764025609175,2.50326025,88741.0,88740.0,0.02390246]
[1764025609374,2.47072366,88741.0,88740.0,0.02390246]
[1764025609611,2.51373587,88741.0,88740.0,0.02390246]
[1764025609960,2.54860673,88741.0,88740.0,0.02390246]
[1764025610160,2.59860673,88741.0,88740.0,0.02390246]
[1764025610415,2.57766,88741.0,88740.0,0.02390246]
[1764025610625,2.54860921,88741.0,88740.0,0.02390246]
[1764025610842,2.59860921,88741.0,88740.0,0.02390246]
[1764025611530,2.58813359,88741.0,88740.0,0.02390246]
[1764025611982,2.59860871,88741.0,88740.0,0.02390246]
[1764025612183,2.58813359,88741.0,88740.0,0.02390246]
[1764025612922,2.57045377,88741.0,88740.0,0.02390246]
[1764025613908,2.57045377,88741.0,88740.0,0.01390246]
[1764025614228,2.81825377,88741.0,88740.0,0.01390246]
[1764025614370,2.76825377,88741.0,88740.0,0.01390246]
[1764025615226,2.74410117,88741.0,88740.0,0.01390246]
[1764025615621,2.79410117,88741.0,88740.0,0.01390246]
[1764025616003,2.74410117,88741.0,88740.0,0.01390246]
[1764025616210,2.93058244,88741.0,88740.0,0.01390246]
[1764025619544,2.95473681,88741.0,88740.0,0.01390246]
[1764025620081,2.95473684,88741.0,88740.0,0.01390246]
[1764025621629,2.90473684,88741.0,88740.0,0.01390246]
[1764025622078,2.78593684,88741.0,88740.0,0.01390246]
[1764025623388,2.77881684,88741.0,88740.0,0.01390246]
[1764025623592,2.78593684,88741.0,88740.0,0.01390246]
[1764025623767,2.76178244,88741.0,88740.0,0.01390246]
[1764025624578,2.75466244,88741.0,88740.0,0.01390246]
[1764025624744,2.76178244,88741.0,88740.0,0.01390246]
[1764025625513,2.81178244,88741.0,88740.0,0.01390246]
[1764025626453,2.76178244,88741.0,88740.0,0.01390246]
[1764025626654,2.81178244,88741.0,88740.0,0.01390246]
[1764025627292,2.79410117,88741.0,88740.0,0.01390246]
[1764025627602,2.74410117,88741.0,88740.0,0.01390246]
[1764025628055,2.79410117,88741.0,88740.0,0.01390246]
[1764025629044,2.74410117,88741.0,88740.0,0.01390246]
[1764025629556,2.79410117,88741.0,88740.0,0.01390246]
[1764025631110,2.74410117,88741.0,88740.0,0.01390246]
[1764025631756,2.79410117,88741.0,88740.0,0.01390246]
[1764025632266,2.74410117,88741.0,88740.0,0.01390246]
[1764025632839,2.76827009,88741.0,88740.0,0.01390246]
[1764025633240,2.81827009,88741.0,88740.0,0.01390246]
[1764025633472,2.76827009,88741.0,88740.0,0.01390246]
[1764025634036,2.43711658,88741.0,88740.0,0.01390246]
[1764025634270,2.48711658,88741.0,88740.0,0.01390246]
[1764025634471,2.47181592,88741.0,88740.0,0.01390246]
[1764025634715,2.52181592,88741.0,88740.0,0.01390246]
[1764025635190,2.47181592,88741.0,88740.0,0.01390246]
[1764025636186,2.79481592,88741.0,88740.0,0.01390246]
[1764025636427,2.79481592,88741.0,88740.0,0.02908246]
[1764025636428,2.03483728,88741.0,88740.0,0.02908246]
[1764025636599,0.02098376,88741.0,88740.0,0.01390246]
[1764025636831,0.10701753,88741.0,88740.0,0.01390246]
[1764025637838,0.10701753,88741.0,88740.0,0.04136246]
[1764025638980,0.43001753,88741.0,88740.0,0.04136246]
[1764025639189,0.43001753,88741.0,88740.0,0.02618246]
[1764025639573,0.43001753,88741.0,88740.0,0.01390246]
[1764025641828,2.43001753,88741.0,88740.0,0.01390246]
[1764025642026,2.45097374,88741.0,88740.0,0.01390246]
[1764025642636,2.51349673,88741.0,88740.0,0.01390246]
[1764025644089,2.34395621,88741.0,88740.0,0.01390246]
[1764025644297,0.33012,88741.0,88740.0,0.04136246]
[1764025644940,0.33012,88741.0,88740.0,0.02618246]
[1764025646320,0.33012,88741.0,88740.0,0.01390246]
[1764025647754,2.33012,88741.0,88740.0,0.01390246]
[1764025647969,2.35107548,88741.0,88740.0,0.01390246]
[1764025649282,2.41359847,88741.0,88740.0,0.01390246]
[1764025650189,2.42750093,88741.0,88740.0,0.01390246]
[1764025651772,2.33012,88741.0,88740.0,0.01390246]
[1764025652696,2.323,88741.0,88740.0,0.02908246]
[1764025652903,0.33012,88741.0,88740.0,0.02908246]
[1764025653689,0.33012,88741.0,88740.0,0.01390246]
[1764025656629,0.323,88741.0,88740.0,0.02908246]
[1764025656808,0.33012,88741.0,88740.0,0.05296246]
[1764025657208,0.33012,88741.0,88740.0,0.02908246]
[1764025658233,0.33012,88741.0,88740.0,0.01390246]
[1764025659730,0.34402246,88741.0,88740.0,0.01390246]
[1764025661053,0.36498701,88741.0,88740.0,0.01390246]
[1764025661255,2.36498701,88741.0,88740.0,0.01390246]
[1764025667017,2.35786701,88741.0,88740.0,0.01390246]
[1764025667203,2.36498701,88741.0,88740.0,0.01390246]
[1764025667403,2.3650046,88741.0,88740.0,0.01390246]
[1764025669479,2.3578846,88741.0,88740.0,0.01390246]
[1764025669677,2.3650046,88741.0,88740.0,0.01390246]
[1764025670301,2.3650046,88741.0,88740.0,0.02390246]
[1764025671283,2.11917944,88741.0,88740.0,0.02390246]
[1764025671484,2.0420046,88741.0,88740.0,0.02390246]
[1764025673207,2.0920046,88741.0,88740.0,0.02390246]
[1764025673865,2.09200729,88741.0,88740.0,0.02390246]
[1764025675574,2.04200729,88741.0,88740.0,0.02390246]
[1764025676742,2.09200729,88741.0,88740.0,0.02390246]
[1764025677161,2.36500729,88741.0,88740.0,0.02390246]
[1764025677986,2.35788729,88741.0,88740.0,0.02390246]
[1764025678210,2.36500729,88741.0,88740.0,0.02390246]
[1764025679062,2.35788729,88741.0,88740.0,0.02390246]
[1764025679178,2.35788729,88741.0,88740.0,0.07500246]
[1764025679383,0.36500729,88741.0,88740.0,0.07500246]
[1764025679835,0.36500729,88741.0,88740.0,0.05175246]
[1764025681315,0.36500729,88741.0,88740.0,0.02390246]
[1764025681843,2.36500729,88741.0,88740.0,0.02390246]
[1764025683578,2.42753028,88741.0,88740.0,0.02390246]
[1764025683739,2.47753028,88741.0,88740.0,0.02390246]
[1764025683934,2.42753028,88741.0,88740.0,0.02390246]
[1764025684180,2.47753028,88741.0,88740.0,0.02390246]
[1764025684445,2.50169749,88741.0,88740.0,0.02390246]
[1764025684646,2.42753028,88741.0,88740.0,0.02390246]
[1764025686301,2.47753028,88741.0,88740.0,0.02390246]
[1764025686501,2.51218675,88741.0,88740.0,0.02390246]
[1764025688014,2.51318675,88741.0,88740.0,0.02390246]
[1764025688222,2.51218675,88741.0,88740.0,0.02390246]
[1764025688380,2.51318675,88741.0,88740.0,0.02390246]
[1764025688907,2.36307213,88741.0,88740.0,0.02390246]
[1764025690379,2.36307213,88741.0,88740.0,0.01390246]
[1764025693335,2.38075467,88741.0,88740.0,0.01390246]
[1764025696671,2.45338764,88741.0,88740.0,0.01390246]
[1764025696873,2.38075467,88741.0,88740.0,0.01390246]
[1764025698121,2.33075467,88741.0,88740.0,0.01390246]
[1764025698322,2.61092335,88731.0,88730.0,0.0002]
[1764025698496,2.61814137,88731.0,88730.0,0.0002]
[1764025698700,2.66814137,88731.0,88730.0,0.0002]
[1764025698903,2.67266072,88731.0,88730.0,0.0002]
[1764025699505,2.62266072,88731.0,88730.0,0.0002]
[1764025699708,2.67266072,88731.0,88730.0,0.0002]
[1764025700784,2.69361845,88731.0,88730.0,0.0002]
[1764025701785,2.64361845,88731.0,88730.0,0.0002]
[1764025701984,2.69361845,88731.0,88730.0,0.0002]
[1764025702434,2.73457386,88731.0,88730.0,0.0002]
[1764025702584,2.69361845,88731.0,88730.0,0.0002]
[1764025702785,2.64361845,88731.0,88730.0,0.0002]
[1764025703573,2.69361845,88731.0,88730.0,0.0002]
[1764025703937,2.69361845,88731.0,88730.0,0.0005059]
[1764025704302,2.69361199,88731.0,88730.0,0.0005059]
[1764025704941,2.72002521,88731.0,88730.0,0.0005059]
[1764025705146,2.64361199,88731.0,88730.0,0.0005059]
[1764025705345,2.73032862,88731.0,88730.0,0.0005059]
[1764025705751,2.78032862,88731.0,88730.0,0.0005059]
[1764025706190,2.73032862,88731.0,88730.0,0.0005059]
[1764025709613,2.78032862,88731.0,88730.0,0.0005059]
[1764025710262,2.73032862,88731.0,88730.0,0.0005059]
[1764025711370,2.78032862,88731.0,88730.0,0.0005059]
[1764025711645,2.573969,88731.0,88730.0,0.0396959]
[1764025711823,2.581089,88731.0,88730.0,0.0396959]
[1764025712576,2.56013773,88731.0,88730.0,0.0396959]
[1764025713249,2.57400692,88731.0,88730.0,0.0396959]
[1764025713551,2.55301773,88731.0,88730.0,0.0396959]
[1764025715215,2.55301773,88731.0,88730.0,0.0160659]
[1764025715444,2.55301773,88731.0,88730.0,0.0005059]
[1764025721261,0.55301773,88731.0,88730.0,0.0160659]
[1764025721467,0.56013773,88731.0,88730.0,0.0396959]
[1764025725415,0.56013773,88731.0,88730.0,0.0160659]
[1764025727830,0.56013773,88731.0,88730.0,0.0005059]
[1764025728174,0.55301773,88731.0,88730.0,0.0005059]
[1764025728375,0.56013773,88731.0,88730.0,0.0005059]
[1764025728500,0.54841815,88724.0,88723.0,0.00235095]
[1764025729324,0.54841815,88724.0,88723.0,0.01758095]
[1764025730715,0.54841815,88724.0,88723.0,0.04149095]
[1764025731053,0.55979913,88724.0,88723.0,0.04149095]
[1764025733470,0.00461737,88731.0,88723.0,0.04149095]
[1764025733644,0.00721802,88731.0,88730.0,0.01523]
[1764025733851,0.33021802,88731.0,88730.0,0.01523]
[1764025734044,0.43723555,88731.0,88730.0,0.01523]
[1764025735873,0.43723555,88731.0,88730.0,0.03914]
[1764025735874,0.44830411,88731.0,88730.0,0.03914]
[1764025739112,0.44830411,88731.0,88730.0,0.0373]
[1764025742009,0.01127027,88729.0,88723.0,0.00235095]
[1764025742208,2.00009802,88731.0,88730.0,0.01523]
[1764025742209,0.01126614,88731.0,88730.0,0.01523]
[1764025742418,9.802e-05,88731.0,88730.0,0.01523]
[1764025742618,9.802e-05,88731.0,88730.0,0.03914]
[1764025746573,9.802e-05,88731.0,88726.0,0.0225413]
[1764025746574,0.01126976,88733.0,88732.0,0.01523]
[1764025746808,0.01135002,88733.0,88732.0,0.01523]
[1764025747141,0.01135002,88733.0,88732.0,0.03914]
[1764025748144,0.02256844,88733.0,88732.0,0.03914]
[1764025748568,8.026e-05,88733.0,88732.0,0.03914]
[1764025752166,8.026e-05,88733.0,88732.0,0.04014]
[1764025752365,8.026e-05,88733.0,88732.0,0.04114]
[1764025752572,8.026e-05,88733.0,88732.0,0.04014]
[1764025752799,0.22547554,88733.0,88732.0,0.04014]
[1764025753040,0.22547554,88733.0,88732.0,0.04114]
[1764025753468,8.026e-05,88733.0,88732.0,0.04114]
[1764025759985,8.026e-05,88733.0,88732.0,0.06367978]
[1764025762697,8.026e-05,88733.0,88732.0,0.04114]
[1764025765775,0.22547554,88733.0,88732.0,0.04114]
[1764025766439,0.22547554,88733.0,88732.0,0.002]
[1764025767432,8.026e-05,88733.0,88732.0,0.04015]
[1764025768091,0.01127078,88725.0,88719.0,0.00479441]
[1764025768306,0.01127078,88725.0,88724.0,0.01226]
[1764025768792,0.01127078,88725.0,88724.0,0.02749]
[1764025768977,0.23668247,88727.0,88724.0,0.02749]
[1764025769581,0.23668247,88727.0,88724.0,0.02849]
[1764025769980,0.22541556,88726.0,88724.0,0.02749]
[1764025770235,0.22541556,88726.0,88724.0,0.01326]
[1764025770435,0.23668247,88727.0,88724.0,0.01326]
[1764025770990,0.23668247,88727.0,88724.0,0.01226]
[1764025770991,0.22541462,88726.0,88724.0,0.01226]
[1764025771428,0.23668247,88727.0,88724.0,0.01326]
[1764025771773,0.23668247,88727.0,88724.0,0.03618]
[1764025772106,0.01127001,88731.0,88726.0,0.01523]
[1764025772254,0.01127014,88730.0,88726.0,0.01523]
[1764025772487,0.01127027,88729.0,88726.0,0.01523]
[1764025772689,0.01127027,88729.0,88724.0,0.01426]
[1764025772690,0.01127052,88727.0,88724.0,0.01426]
[1764025772888,0.22541454,88726.0,88724.0,0.01426]
[1764025773097,0.22541454,88726.0,88724.0,0.01326]
[1764025773298,0.22541454,88726.0,88724.0,0.01226]
[1764025773698,0.23668104,88727.0,88724.0,0.01226]
[1764025773895,0.23668104,88727.0,88724.0,0.01326]
[1764025774329,0.23668104,88727.0,88724.0,0.03618]
[1764025774546,0.23668104,88727.0,88724.0,0.03718]
[1764025774903,0.23668104,88727.0,88724.0,0.01326]
[1764025775116,0.23668104,88727.0,88725.0,0.02292]
[1764025775315,0.23668104,88727.0,88724.0,0.01426]
[1764025775526,0.22541456,88726.0,88724.0,0.01426]